[Event "German-ch Blitz Women 2022"]
[Site "Magdeburg"]
[Date "2022.08.13"]
[Round "10.12"]
[White "Falke, Ornella"]
[Black "Kosovska, Olena"]
[Result "1-0"]
[ECO "B30"]
[WhiteElo "1912"]
[BlackElo "1831"]
[Annotator "TA"]
[PlyCount "84"]
[EventDate "2022.08.10"]
[EventType "tourn"]
[EventCountry "GER"]
[SourceTitle "playchess.com"]
[Source "ChessBase"]
[SourceQuality "1"]
[TimeControl "180+2"]

{[%evp 11,84,54,53,8,10,11,6,0,0,-11,32,0,66,18,27,-29,68,68,76,77,75,68,90,35,35,35,33,31,35,-181,-181,-182,0,0,350,0,0,0,425,0,0,0,0,0,0,0,0,0,0,0,0,0,3,0,0,0,2,0,10,0,0,0,0,0,0,0,0,-522,-515,-521,-500,-29965,-29964,-29970,-29970]} 1. e4 {[%emt 0:00:01]} c5 {[%emt 0:00:00]} 2. Nf3 {[%emt 0:00:02]} Nc6 {[%emt 0:00:01]} 3. Bb5 {[%emt 0:00:01]} d6 {[%emt 0:00:04]} 4. O-O {[%emt 0:00:11]} Bd7 {[%emt 0:00:03]} 5. Re1 {[%emt 0:00:01]} e5 {[%emt 0:00:01]} 6. c3 {[%emt 0:00:03]} Nf6 {[%emt 0:00:02]} 7. Na3 {[%emt 0:00:02] B51: Sicilian: Moscow Variation (3 Bb5+) without 3...Bd7.} (7. d4 {looks sharper.} a6 8. Bxc6 Bxc6 9. dxe5 Nxe4 10. Bf4) 7... Be7 {[%emt 0:00:01]} 8. Nc2 {[%emt 0:00:03]} a6 {[%emt 0:00:02]} 9. Bf1 {[%emt 0:00:02] The position is equal.} O-O {[%emt 0:00:04] [#]} 10. h3 $146 {[%emt 0:00:04]} ({Predecessor:} 10. d4 Qc7 11. d5 Na5 12. b3 b5 13. h3 Ne8 14. g4 g6 15. Bh6 Ng7 16. Ne3 {0-1 (59) Hirsch,S (2193)-Van Dooren,D (2331) Germany 2016}) 10... b5 {[%emt 0:00:04]} 11. a4 {[%emt 0:00:08]} Qc7 {[%emt 0:00:11]} ({Black should try} 11... Na5 $11) 12. d4 {[%emt 0:00:02]} (12. axb5 $14 axb5 13. Rxa8 Rxa8 14. Bxb5) 12... cxd4 {[%emt 0:00:11]} 13. cxd4 {[%emt 0:00:02]} (13. axb5 $142 axb5 14. Rxa8 Rxa8 15. cxd4) 13... Rfc8 {[%emt 0:00:08]} (13... bxa4 $1 $11 14. Bd2 Nxd4 15. Ncxd4 (15. Nfxd4 exd4 16. Nxd4 d5 $11) 15... exd4) 14. axb5 $14 {[%emt 0:00:20]} axb5 {[%emt 0:00:08]} 15. Rxa8 {[%emt 0:00:26]} Rxa8 {[%emt 0:00:01]} 16. Bxb5 {[%emt 0:00:01]} Qb6 {[%emt 0:00:06]} 17. Bxc6 {[%emt 0:00:09]} (17. dxe5 $16 dxe5 18. Bc4) 17... Bxc6 {[%emt 0:00:10]} 18. dxe5 {[%emt 0:00:04]} (18. Qd3 {feels hotter.} Rc8 19. Bd2 Qb7 20. d5) 18... dxe5 {[%emt 0:00:03]} 19. Nxe5 {[%emt 0:00:02]} Bxe4 {[%emt 0:00:18]} 20. Rxe4 $2 {[%emt 0:00:08]} Nxe4 $19 {[%emt 0:00:04]} 21. Be3 {[%emt 0:00:17]} Qxb2 {[%emt 0:00:20]} ({Better is} 21... Qe6 $19 22. Bd4 Rd8) 22. Qd5 $11 {[%emt 0:00:07][%csl LRa8,LRe4,LRf7]} Ra1+ {[%emt 0:01:16][%mdl 8192] [#]} (22... Rc8 $2 23. Qxf7+ Kh8 24. Qe6 $18) (22... Qxc2 $11 23. Qxa8+ Bf8) 23. Nxa1 $2 {[%emt 0:00:02] The board is on fire.} ({White has to play} 23. Kh2 $1 $18 Qa2 24. Qd7) 23... Qxa1+ {[%emt 0:00:02]} 24. Kh2 {[%emt 0:00:00]} Nd6 {[%emt 0:00:03][%mdl 8192]} (24... Qxe5+ $1 $11 25. Qxe5 Bd6 26. Qxd6 Nxd6) 25. Bd4 $2 {[%emt 0:00:04]} (25. Bc5 $18 Qa4 26. Nc6 (26. Bxd6 Qf4+ 27. g3 Qxf2+ 28. Kh1 Qf1+ 29. Kh2 Qf2+ 30. Kh1 Qf1+ 31. Kh2 Qf2+ $11) 26... Qf4+ 27. g3) 25... Qa4 {[%emt 0:00:08]} 26. Nc6 {[%emt 0:00:04]} Bf8 {[%emt 0:00:03]} 27. Bc5 {[%emt 0:00:16]} Qb5 {[%emt 0:00:04]} 28. Nd4 {[%emt 0:00:13]} Qd7 {[%emt 0:00:02]} 29. g3 {[%emt 0:00:14]} h6 {[%emt 0:00:02]} 30. Kg2 {[%emt 0:00:02]} Qb7 {[%emt 0:00:05]} 31. Nc6 {[%emt 0:00:13]} Qd7 {[%emt 0:00:08]} 32. Ne5 {[%emt 0:00:05]} Qb7 {[%emt 0:00:02]} 33. Nc6 {[%emt 0:00:02]} Qd7 {[%emt 0:00:01]} 34. Kh2 {[%emt 0:00:02]} Qe6 {[%emt 0:00:05]} 35. Qf3 {[%emt 0:00:05]} Nf5 {[%emt 0:00:02]} 36. Nd4 {[%emt 0:00:07]} Nxd4 {[%emt 0:00:04]} 37. Bxd4 {[%emt 0:00:01][%mdl 4096] Endgame KQB-KQB} Kh7 {[%emt 0:00:01]} 38. Qd3+ {[%emt 0:00:01]} Kg8 {[%emt 0:00:02]} 39. Kg2 $2 {[%emt 0:00:02][%mdl 8192] [#]} (39. Be3 $11 {and White stays safe.}) 39... Qd5+ $1 $19 {[%emt 0:00:01]} 40. Kh2 {[%emt 0:00:01]} Bc5 {[%emt 0:00:03]} 41. Qb5 {[%emt 0:00:23]} (41. Qb1 $19 Qxd4 42. Qb8+ Kh7 43. Qb1+ g6 44. Qh1 Qxf2+ 45. Qg2) 41... Qxd4 {[%emt 0:00:04]} 42. Qb8+ {[%emt 0:00:01]} Kh7 {[%mdl 32768] Weighted Error Value: White=0.82/Black=0.44. Sensor Board Error (Ke4/e5)?} 1-0

[Event "German-ch Blitz Women 2022"]
[Site "Magdeburg"]
[Date "2022.08.13"]
[Round "11.1"]
[White "Kosovska, Olena"]
[Black "Paehtz, Elisabeth"]
[Result "0-1"]
[ECO "A10"]
[WhiteElo "1831"]
[BlackElo "2484"]
[Annotator "TA"]
[PlyCount "52"]
[EventDate "2022.08.10"]
[EventType "tourn"]
[EventCountry "GER"]
[SourceTitle "playchess.com"]
[Source "ChessBase"]
[SourceQuality "1"]
[TimeControl "180+2"]

{[%evp 14,52,0,0,22,8,34,-35,-38,-35,-28,-54,-79,-135,-134,-133,-120,-247,-240,-241,-264,-339,-340,-324,-326,-333,-327,-341,-327,-464,-374,-381,-375,-381,-357,-379,-379,-373,-355,-1933,-1838]} 1. c4 {[%emt 0:00:01]} b6 {[%emt 0:00:01]} 2. Nc3 {[%emt 0:00:01]} Bb7 {[%emt 0:00:00]} 3. d4 {[%emt 0:00:01]} e6 {[%emt 0:00:01]} 4. e3 {[%emt 0:00:02]} Bb4 {[%emt 0:00:01]} 5. Nf3 {[%emt 0:00:01]} f5 {[%emt 0:00:02]} 6. Be2 {[%emt 0:00:02]} Nf6 {[%emt 0:00:02][%cal Bg8f6,Bf6e4,Be4d2,Bd2f1,Bf1e3][%mdl 32]} 7. O-O {[%emt 0:00:02]} Bxc3 {[%emt 0:00:05]} 8. bxc3 {[%emt 0:00:01]} O-O {[%emt 0:00:02] A85: Dutch Defence: 2 c4 Nf6 3 Nc3.} 9. Ba3 {[%emt 0:00:03]} d6 {[%emt 0:00:02]} 10. Rb1 {[%emt 0:00:06]} ({White should try} 10. c5 $14) 10... Ne4 $15 {[%emt 0:00:02] Black is slightly better.} 11. Qc2 {[%emt 0:00:03][%cal Oc4c5]} Nd7 {[%emt 0:00:04] Prevents c5.} 12. Nd2 {[%emt 0:00:10]} Qg5 {[%emt 0:00:10] [#] And now ...Nxd2 would win.} 13. Bf3 $146 {[%emt 0:00:10]} (13. f4 $142 Qg6 14. Nf3) ({Predecessor:} 13. Nf3 Qh6 14. Ne1 Rf6 15. Bc1 Qg6 16. Bd3 Raf8 17. f3 Ng5 18. Qa4 Qh5 19. Qxd7 {1-0 (36) Bucher,S (1729)-Bosshard,R (1761) Rapperswil 2010}) 13... Nxd2 $17 {[%emt 0:00:14] Black is more active.} 14. Bxb7 {[%emt 0:00:02]} Nxf1 {[%emt 0:00:02]} 15. Bxa8 {[%emt 0:00:03]} (15. Rxf1 $17 Rad8 16. e4) 15... Nxe3 $1 $40 {[%emt 0:00:03][%mdl 128] White is in trouble.} ({Weaker is} 15... Rxa8 16. Rxf1 Qh5 17. h3 $11) 16. fxe3 {[%emt 0:00:12] [#] Strongly threatening Bc6.} Qxe3+ {[%emt 0:00:04]} 17. Kh1 {[%emt 0:00:01]} Rxa8 {[%emt 0:00:02]} 18. Rf1 {[%emt 0:00:05]} Nf6 {[%emt 0:00:08][%cal Bd7f6,Bf6e4,Be4f2][%mdl 32]} 19. Bc1 {[%emt 0:00:07]} Qe4 {[%emt 0:00:02]} 20. Qf2 {[%emt 0:00:09]} Re8 {[%emt 0:00:07]} 21. h3 {[%emt 0:00:04]} (21. Bg5 $142) 21... Qc6 {[%emt 0:00:04]} 22. Qe2 {[%emt 0:00:06]} Ne4 {[%emt 0:00:03] Hoping for ...Ng3+.} 23. Qd3 {[%emt 0:00:03] Against Ng3+} Qa4 {[%emt 0:00:13]} 24. a3 {[%emt 0:00:05]} Qb3 {[%emt 0:00:03]} 25. Rf3 {[%emt 0:00:15]} Rf8 {[%emt 0:00:13]} 26. Re3 $2 {[%emt 0:00:32]} (26. Kh2) 26... Nf2+ {[%emt 0:00:02] White did not feel at home in the position after the opening.  Weighted Error Value: White=0.74/Black=0.12 (very precise)} 0-1

[Event "German-ch Blitz Women 2022"]
[Site "Magdeburg"]
[Date "2022.08.13"]
[Round "11.2"]
[White "Leveikina, Jevgenija"]
[Black "Falke, Ornella"]
[Result "1-0"]
[ECO "A46"]
[WhiteElo "2061"]
[BlackElo "1912"]
[Annotator "NA RC"]
[PlyCount "99"]
[EventDate "2022.08.10"]
[EventType "tourn"]
[EventCountry "GER"]
[SourceTitle "playchess.com"]
[Source "ChessBase"]
[SourceQuality "1"]
[TimeControl "180+2"]

1. d4 {[%emt 0:00:00]} Nf6 {[%emt 0:00:02]} 2. Nf3 {[%emt 0:00:01]} e6 {[%emt 0:00:05]} 3. g3 {[%emt 0:00:02]} c5 {[%emt 0:00:01]} 4. c3 {[%emt 0:00:00]} Nc6 {[%emt 0:00:05]} 5. Bg2 {[%emt 0:00:01]} d5 {[%emt 0:00:11]} 6. O-O {[%emt 0:00:01]} Be7 {[%emt 0:00:00]} 7. Bf4 {[%emt 0:00:01]} O-O {[%emt 0:00:02]} 8. Nbd2 {[%emt 0:00:02]} Bd7 {[%emt 0:00:06]} 9. Ne5 {[%emt 0:00:05]} Rc8 {[%emt 0:00:08]} 10. Ndf3 {[%emt 0:00:02]} Be8 {[%emt 0:00:04]} 11. Rc1 {[%emt 0:00:09]} Nd7 {[%emt 0:00:02]} 12. Nxc6 {[%emt 0:00:13]} Rxc6 {[%emt 0:00:10]} 13. Qd2 {[%emt 0:00:03]} Qa5 14. dxc5 {[%emt 0:00:08]} Qxa2 {[%emt 0:00:31]} 15. Ra1 {[%emt 0:00:04]} Qc4 {[%emt 0:00:02]} 16. Bd6 {[%emt 0:00:21]} Bxd6 {[%emt 0:00:06]} 17. cxd6 {[%emt 0:00:02]} Rxd6 {[%emt 0:00:02]} 18. Rxa7 {[%emt 0:00:04]} Nc5 {[%emt 0:00:13]} 19. Ne5 {[%emt 0:00:12]} Qb5 {[%emt 0:00:08]} 20. b4 {[%emt 0:00:12]} Nd7 {[%emt 0:00:22]} 21. Ra5 {[%emt 0:00:06]} Qb6 {[%emt 0:00:04]} 22. Nd3 {[%emt 0:00:14]} Nf6 {[%emt 0:00:20]} 23. Nc5 {[%emt 0:00:05]} Bb5 {[%emt 0:00:07]} 24. Rfa1 {[%emt 0:00:09]} Rfd8 {[%emt 0:00:08]} 25. e3 {[%emt 0:00:09]} Ne4 {[%emt 0:00:06]} 26. Qd4 {[%emt 0:00:14]} Bc6 {[%emt 0:00:26]} 27. Ra8 {[%emt 0:00:07]} f6 {[%emt 0:00:10]} 28. Nxe6 {[%emt 0:00:16]} Qxd4 {[%emt 0:00:12]} 29. cxd4 {[%emt 0:00:12]} Rxa8 {[%emt 0:00:01]} 30. Rxa8+ {[%emt 0:00:01]} Kf7 {[%emt 0:00:01]} 31. Nc5 {[%emt 0:00:13]} Nc3 {[%emt 0:00:01]} 32. Ra7 {[%emt 0:00:08]} Kg6 {[%emt 0:00:01]} 33. h4 {[%emt 0:00:07]} b6 {[%emt 0:00:01]} 34. Nd3 {[%emt 0:00:02]} Bb5 {[%emt 0:00:02]} 35. Nf4+ {[%emt 0:00:02]} Kh6 {[%emt 0:00:02]} 36. Rc7 {[%emt 0:00:07]} Ne2+ {[%emt 0:00:01]} 37. Nxe2 Bxe2 38. Bf1 {[%emt 0:00:06]} Bf3 {[%emt 0:00:02]} 39. Bg2 {[%emt 0:00:03]} Bxg2 {[%emt 0:00:03]} 40. Kxg2 {[%emt 0:00:02]} Kg6 {[%emt 0:00:01]} 41. b5 {[%emt 0:00:00]} h5 42. Rc6 {[%emt 0:00:02]} Rd7 {[%emt 0:00:10]} 43. Rxb6 {[%emt 0:00:01]} Kf5 {[%emt 0:00:01]} 44. Kf3 {[%emt 0:00:02]} g5 {[%emt 0:00:02]} 45. hxg5 {[%emt 0:00:01]} fxg5 {[%emt 0:00:00]} 46. Rb8 {[%emt 0:00:03]} Rh7 {[%emt 0:00:05]} 47. b6 {[%emt 0:00:04]} h4 {[%emt 0:00:02]} 48. gxh4 {[%emt 0:00:01]} gxh4 {[%emt 0:00:01]} 49. b7 {[%emt 0:00:02]} h3 {[%emt 0:00:01]} 50. Rf8+ {[%emt 0:00:17]} 1-0

[Event "German-ch Blitz Women 2022"]
[Site "Magdeburg"]
[Date "2022.08.13"]
[Round "11.3"]
[White "Heil, Marina"]
[Black "Stangl, Anita"]
[Result "0-1"]
[ECO "A13"]
[WhiteElo "1926"]
[BlackElo "2023"]
[Annotator "NA RC"]
[PlyCount "58"]
[EventDate "2022.08.10"]
[EventType "tourn"]
[EventCountry "GER"]
[SourceTitle "playchess.com"]
[Source "ChessBase"]
[SourceQuality "1"]
[TimeControl "180+2"]

1. c4 {[%emt 0:00:01]} e6 {[%emt 0:00:00]} 2. e4 {[%emt 0:00:01]} d5 {[%emt 0:00:01]} 3. cxd5 {[%emt 0:00:01]} exd5 {[%emt 0:00:00]} 4. exd5 {[%emt 0:00:02]} Nf6 {[%emt 0:00:02]} 5. Nc3 {[%emt 0:00:02]} Nxd5 {[%emt 0:00:02]} 6. Bc4 {[%emt 0:00:03]} Nb6 {[%emt 0:00:01]} 7. Bb3 {[%emt 0:00:01]} Be7 {[%emt 0:00:06]} 8. Nf3 {[%emt 0:00:03]} O-O {[%emt 0:00:01]} 9. O-O {[%emt 0:00:01]} Bg4 {[%emt 0:00:01]} 10. h3 {[%emt 0:00:06]} Bh5 {[%emt 0:00:01]} 11. Ne4 {[%emt 0:00:12]} Nc6 {[%emt 0:00:15]} 12. Ng3 {[%emt 0:00:02]} Bg6 {[%emt 0:00:01]} 13. d4 {[%emt 0:00:12]} Bf6 {[%emt 0:00:08]} 14. Be3 {[%emt 0:00:10]} Nd5 {[%emt 0:00:01]} 15. Rc1 {[%emt 0:00:15]} Re8 {[%emt 0:00:03]} 16. Qd2 {[%emt 0:00:10]} Qd6 {[%emt 0:00:03]} 17. Rc5 {[%emt 0:00:13]} Nxe3 {[%emt 0:00:06]} 18. fxe3 {[%emt 0:00:04]} Qxg3 {[%emt 0:00:01]} 19. d5 {[%emt 0:00:12]} Ne5 {[%emt 0:00:06]} 20. Nd4 {[%emt 0:00:17]} b6 {[%emt 0:00:10]} 21. Rc3 {[%emt 0:00:14]} Nd7 {[%emt 0:00:08]} 22. Rf3 {[%emt 0:00:02]} Qe5 {[%emt 0:00:07]} 23. Nc6 {[%emt 0:00:06]} Qd6 {[%emt 0:00:03]} 24. Rc1 {[%emt 0:00:07]} Be4 {[%emt 0:00:07]} 25. Rf4 {[%emt 0:00:13]} Nc5 {[%emt 0:00:06]} 26. Bc4 {[%emt 0:00:19]} a6 {[%emt 0:00:09]} 27. Rd1 {[%emt 0:00:16]} b5 {[%emt 0:00:03]} 28. Be2 {[%emt 0:00:03]} Bg6 {[%emt 0:00:13]} 29. Bf3 {[%emt 0:00:21]} Bg5 {[%emt 0:00:03]} 0-1

[Event "German-ch Blitz Women 2022"]
[Site "Magdeburg"]
[Date "2022.08.13"]
[Round "11.4"]
[White "Fock, Sana"]
[Black "Wulf, Constanze"]
[Result "0-1"]
[ECO "B01"]
[WhiteElo "1807"]
[BlackElo "1835"]
[Annotator "NA RC COMBH"]
[PlyCount "84"]
[EventDate "2022.08.10"]
[EventType "tourn"]
[EventCountry "GER"]
[SourceTitle "playchess.com"]
[Source "ChessBase"]
[SourceQuality "1"]
[TimeControl "180+2"]

1. e4 {[%emt 0:00:01]} d5 {[%emt 0:00:01]} 2. exd5 {[%emt 0:00:01]} Qxd5 {[%emt 0:00:01]} 3. Nc3 {[%emt 0:00:02]} Qd6 {[%emt 0:00:01]} 4. d4 {[%emt 0:00:01]} Nf6 {[%emt 0:00:03]} 5. Nf3 {[%emt 0:00:01]} a6 {[%emt 0:00:02]} 6. Be2 {[%emt 0:00:05]} b5 {[%emt 0:00:02]} 7. a3 {[%emt 0:00:01]} Bb7 {[%emt 0:00:01]} 8. O-O {[%emt 0:00:03]} e6 {[%emt 0:00:04]} 9. Bg5 {[%emt 0:00:09]} Nbd7 {[%emt 0:00:01]} 10. Qd2 {[%emt 0:00:04]} Be7 {[%emt 0:00:14]} 11. Bf4 {[%emt 0:00:03]} Qb6 {[%emt 0:00:04]} 12. b4 {[%emt 0:00:23]} O-O {[%emt 0:00:17]} 13. a4 {[%emt 0:00:24]} Bxb4 {[%emt 0:00:27]} 14. Rfb1 {[%emt 0:00:17]} Ne4 {[%emt 0:00:16]} 15. Qd3 {[%emt 0:00:55]} Bxc3 {[%emt 0:00:07]} 16. Ra3 {[%emt 0:00:04]} Qc6 {[%emt 0:00:22]} 17. Ne5 {[%emt 0:00:40]} Nxe5 {[%emt 0:00:03]} 18. Bxe5 {[%emt 0:00:01]} b4 {[%emt 0:00:48]} 19. Rab3 {[%emt 0:00:01]} a5 {[%emt 0:00:07]} 20. Bf3 {[%emt 0:00:10]} f6 {[%emt 0:00:23]} 21. Bxe4 {[%emt 0:00:06]} Qxe4 {[%emt 0:00:04]} 22. Qxe4 {[%emt 0:00:02]} Bxe4 {[%emt 0:00:03]} 23. Bxc7 {[%emt 0:00:03]} Bxd4 {[%emt 0:00:05]} 24. Rg3 {[%emt 0:00:04]} Bxc2 {[%emt 0:00:07]} 25. Rc1 {[%emt 0:00:01]} Bxa4 {[%emt 0:00:02]} 26. Bd6 {[%emt 0:00:01]} Rac8 {[%emt 0:00:04]} 27. Re1 {[%emt 0:00:03]} e5 {[%emt 0:00:01]} 28. Bxf8 {[%emt 0:00:03]} Kxf8 {[%emt 0:00:01]} 29. h3 {[%emt 0:00:00]} Kf7 {[%emt 0:00:01]} 30. Rd3 {[%emt 0:00:03]} Bb5 {[%emt 0:00:01]} 31. Rdd1 {[%emt 0:00:02]} Rc2 {[%emt 0:00:01]} 32. Kh1 {[%emt 0:00:03]} Bxf2 {[%emt 0:00:02]} 33. Rd6 {[%emt 0:00:01]} Ke7 {[%emt 0:00:01]} 34. Rb6 {[%emt 0:00:01]} Bc4 {[%emt 0:00:02]} 35. Rb7+ {[%emt 0:00:01]} Ke6 {[%emt 0:00:01]} 36. Rxg7 {[%emt 0:00:02]} Bd4 {[%emt 0:00:03]} 37. Rxh7 {[%emt 0:00:02]} Bd5 {[%emt 0:00:01]} 38. Rg7 {[%emt 0:00:03]} e4 {[%emt 0:00:02]} 39. Rg6 {[%emt 0:00:03]} e3 {[%emt 0:00:02]} 40. Rf1 {[%emt 0:00:03]} e2 {[%emt 0:00:02]} 41. Re1 {[%emt 0:00:03]} Rd2 {[%emt 0:00:02]} 42. Rg3 {[%emt 0:00:04]} Rd1 {[%emt 0:00:01]} 0-1

[Event "German-ch Blitz Women 2022"]
[Site "Magdeburg"]
[Date "2022.08.13"]
[Round "11.5"]
[White "Schuster, Rebekka"]
[Black "Doll, Rebecca"]
[Result "0-1"]
[ECO "C54"]
[WhiteElo "1815"]
[BlackElo "1933"]
[Annotator "TA"]
[PlyCount "50"]
[EventDate "2022.08.10"]
[EventType "tourn"]
[EventCountry "GER"]
[SourceTitle "playchess.com"]
[Source "ChessBase"]
[SourceQuality "1"]
[TimeControl "180+2"]

{[%evp 16,50,32,12,19,8,45,35,47,49,54,30,24,0,14,0,0,-7,12,12,43,-58,0,2,35,47,33,37,115,-214,-214,-257,-238,-368,-380,-493,-497]} 1. e4 {[%emt 0:00:01]} e5 {[%emt 0:00:03]} 2. Nf3 {[%emt 0:00:01]} Nc6 {[%emt 0:00:01]} 3. Bc4 {[%emt 0:00:01]} Bc5 {[%emt 0:00:02]} 4. c3 {[%emt 0:00:01]} Nf6 5. d3 O-O {[%emt 0:00:16]} 6. b4 {[%emt 0:00:05]} Bb6 {[%emt 0:00:07]} 7. a4 {[%emt 0:00:01]} a6 {[%emt 0:00:12]} 8. O-O {[%emt 0:00:12]} d6 {[%emt 0:00:03]} 9. Bg5 {[%emt 0:00:05][%cal Bc1g5,Bg5h4,Bh4g3][%mdl 32]} h6 {[%emt 0:00:11] C54: Giuoco Piano: 4 c3 Nf6, main lines with 5 d4 and 5 d3.} 10. Bh4 {[%emt 0:00:02]} Be6 {[%emt 0:00:05]} (10... g5 $5 {[%cal Rg5h4]} 11. Bg3 Qe8 $11) 11. Nbd2 {[%emt 0:00:04]} g5 {[%emt 0:00:35] White is slightly better.} 12. Bg3 {[%emt 0:00:04]} Ne7 {[%emt 0:00:02] [#]} 13. Qb3 $146 {[%emt 0:00:32]} ({Predecessor:} 13. h4 g4 14. Nh2 h5 15. Kh1 Ng6 16. f3 Kg7 17. Bxe6 fxe6 18. Nc4 Ba7 19. d4 exd4 20. cxd4 {½-½ (48) Nasuta,G (2512)-Moskalenko,A (2515) Chess.com INT 2021}) 13... Qd7 {[%emt 0:00:21]} 14. d4 {[%emt 0:00:19]} exd4 {[%emt 0:00:02]} 15. cxd4 {[%emt 0:00:02]} Bxc4 {[%emt 0:00:09]} 16. Qxc4 {[%emt 0:00:02]} Ng6 {[%emt 0:00:10]} 17. Rfe1 {[%emt 0:00:23]} Rfe8 {[%emt 0:00:15]} 18. Rad1 {[%emt 0:00:12]} (18. a5 $14 Ba7 19. Rac1) 18... d5 {[%emt 0:00:06]} (18... Qxa4 $15 19. e5 d5) 19. exd5 $11 {[%emt 0:00:12] White wants to play Rxe8+.} Nxd5 {[%emt 0:00:03][%cal Bf6d5,Bd5c3,Bc3d1][%mdl 32]} 20. Ne5 {[%emt 0:00:13]} Nxe5 {[%emt 0:00:05]} 21. dxe5 {[%emt 0:00:13] [#] Hoping for Ne4.} Qe6 {[%emt 0:00:12]} ({Black should play} 21... Qc6 $1 $14) 22. Qe4 $2 {[%emt 0:00:35][%mdl 8192] This move loses the game for White.} (22. a5 $16 {and life is bright.} Ba7 23. h4) 22... Nc3 $19 {[%emt 0:00:14][%csl LRa4,LRd1,LRe4]} 23. Qc2 {[%emt 0:00:15]} Nxd1 {[%emt 0:00:03]} 24. Qxd1 {[%emt 0:00:02]} (24. Rxd1 {is the only way for White.} Rad8 25. a5) 24... Rad8 {[%emt 0:00:04]} 25. Qe2 {[%emt 0:00:08]} Qa2 {[%emt 0:00:07][%csl LRa4,LRd2] Weighted Error Value: White=0.75/Black=0.19 (very precise)} 0-1

[Event "German-ch Blitz Women 2022"]
[Site "Magdeburg"]
[Date "2022.08.13"]
[Round "11.6"]
[White "Zschischang, Marine"]
[Black "Kunze, Kerstin"]
[Result "1-0"]
[ECO "A46"]
[WhiteElo "2083"]
[BlackElo "2020"]
[Annotator "NA RC"]
[PlyCount "283"]
[EventDate "2022.08.10"]
[EventType "tourn"]
[EventCountry "GER"]
[SourceTitle "playchess.com"]
[Source "ChessBase"]
[SourceQuality "1"]
[TimeControl "180+2"]

1. d4 Nf6 2. Nf3 e6 3. Bg5 Be7 4. e3 O-O 5. Bd3 h6 6. Bh4 d5 7. c4 c5 8. cxd5 Nxd5 9. Bxe7 Qxe7 10. O-O cxd4 11. exd4 Nc6 12. Nc3 Nf4 13. Be4 Qf6 14. Rc1 Rd8 15. Bxc6 bxc6 16. Ne4 Qf5 17. Ng3 Qd5 18. Qd2 g5 19. b3 Ba6 20. Rfd1 f5 21. Rc5 Qxc5 22. dxc5 Rxd2 23. Rxd2 Nd3 24. Nd4 Kf7 25. Nxc6 Rc8 26. Nxa7 Rxc5 27. h3 Rc7 28. Ne2 Rxa7 29. Nc3 Rc7 30. Na4 Kf6 31. f3 f4 32. Kh2 h5 33. Nb2 Nxb2 34. Rxb2 Rd7 35. a4 Rb7 36. b4 Bc4 37. b5 Rb6 38. Rb4 Bd3 39. Rd4 Bc2 40. Rc4 Bb3 41. Rb4 Bd5 42. a5 Rb8 43. a6 Rb6 44. a7 Ba8 45. Kg1 Ke5 46. Kf2 Kd5 47. g4 fxg3+ 48. Kxg3 Kc5 49. Re4 Kxb5 50. Re5+ Ka6 51. Rxg5 Rb5 52. Rg6 Kxa7 53. Rxe6 Rf5 54. f4 Kb7 55. Rh6 Kc7 56. Kh4 Bf3 57. Kg3 Bd1 58. Re6 Kd7 59. Re1 Bb3 60. Re3 Be6 61. Re1 Ke7 62. Ra1 Kf6 63. Ra8 Rc5 64. Rf8+ Kg7 65. Re8 Kf7 66. Rh8 Kg7 67. Re8 Rc3+ 68. Kh4 Kf6 69. Rf8+ Bf7 70. Ra8 Rc4 71. Kg3 Rc3+ 72. Kh4 Kg7 73. Ra5 Rc4 74. Kg3 Kf6 75. Ra6+ Be6 76. Ra5 Bf7 77. Ra6+ Kf5 78. Ra5+ Ke4 79. Re5+ Kd4 80. Re7 Bd5 81. f5 Be4 82. f6 Rc6 83. f7 Rf6 84. Kh4 Bd5 85. Kxh5 Bxf7+ 86. Kg5 Rf2 87. h4 Kd5 88. h5 Be6 89. h6 Rg2+ 90. Kf6 Rf2+ 91. Kg7 Rg2+ 92. Kh8 Kd6 93. Ra7 Rg8+ 94. Kh7 Rg5 95. Rg7 Bf5+ 96. Kh8 Rh5 97. h7 Be6 98. Rg1 Ke7 99. Rg7+ Kf6 100. Rg1 Rc5 101. Rf1+ Ke7 102. Rg1 Rc8+ 103. Kg7 Rf8 104. h8=Q Rxh8 105. Kxh8 Kf6 106. Kh7 Kf5 107. Kh6 Kf6 108. Rf1+ Ke5 109. Kg5 Kd6 110. Kf6 Bd5 111. Rd1 Kc5 112. Ke5 Bb3 113. Rc1+ Kb6 114. Kd6 Kb5 115. Ke5 Bf7 116. Kd4 Bg8 117. Rc8 Be6 118. Rb8+ Kc6 119. Rb2 Bf7 120. Rf2 Bg8 121. Rf5 Be6 122. Rg5 Bf7 123. Rf5 Be6 124. Rf6 Kd7 125. Ke5 Bg8 126. Rg6 Bb3 127. Rb6 Bg8 128. Rb8 Bc4 129. Rb4 Bg8 130. Ra4 Bb3 131. Ra7+ Kc6 132. Ra1 Bg8 133. Rc1+ Kd7 134. Rf1 Bb3 135. Rg1 Ba2 136. Rg5 Bb3 137. Ke4 Bg8 138. Ke5 Ba2 139. Kd4 Bf7 140. Kc5 Bd5 141. Rg6 Bf7 142. Rg7 1-0

[Event "German-ch Blitz Women 2022"]
[Site "Magdeburg"]
[Date "2022.08.13"]
[Round "11.7"]
[White "Stärk, Elisa"]
[Black "Rath, Alina"]
[Result "1/2-1/2"]
[ECO "D34"]
[WhiteElo "1950"]
[BlackElo "2062"]
[Annotator "NA RC"]
[PlyCount "33"]
[EventDate "2022.08.10"]
[EventType "tourn"]
[EventCountry "GER"]
[SourceTitle "playchess.com"]
[Source "ChessBase"]
[SourceQuality "1"]
[TimeControl "180+2"]

1. d4 {[%emt 0:00:01]} d5 {[%emt 0:00:00]} 2. c4 {[%emt 0:00:00]} e6 {[%emt 0:00:01]} 3. Nc3 {[%emt 0:00:01]} c5 {[%emt 0:00:01]} 4. cxd5 {[%emt 0:00:01]} exd5 {[%emt 0:00:01]} 5. Nf3 {[%emt 0:00:01]} Nc6 {[%emt 0:00:01]} 6. g3 {[%emt 0:00:01]} Nf6 {[%emt 0:00:01]} 7. Bg2 {[%emt 0:00:00]} Be7 {[%emt 0:00:01]} 8. O-O {[%emt 0:00:02]} O-O {[%emt 0:00:01]} 9. dxc5 {[%emt 0:00:01]} Bxc5 {[%emt 0:00:01]} 10. Na4 {[%emt 0:00:01]} Be7 {[%emt 0:00:01]} 11. Be3 {[%emt 0:00:00]} b6 {[%emt 0:00:08]} 12. Rc1 {[%emt 0:00:03]} Bb7 {[%emt 0:00:01]} 13. Nd4 {[%emt 0:00:04]} Rc8 {[%emt 0:00:03]} 14. Nxc6 {[%emt 0:00:06]} Bxc6 {[%emt 0:00:02]} 15. Nc3 {[%emt 0:00:02]} Qd7 {[%emt 0:00:07]} 16. Qd2 {[%emt 0:00:12]} Rfd8 {[%emt 0:00:01]} 17. Rfd1 {[%emt 0:00:01]} 1/2-1/2